[Event "Titled Tuesday Blitz August 3 2021"]
[White "Iskusnyh, Sergei"]
[Black "Rasulov, Vugar"]
[WhiteFideId "4120027"]
[BlackFideId "13402390"]
[WhiteElo "2492"]
[BlackElo "2553"]
[Result "1/2-1/2"]
[Round "05"]
[TimeControl "180+1"]
[Date "2021.08.03"]
[WhiteClock "0:00:29"]
[BlackClock "0:00:20"]

1. d4 {[%clk 0:03:00]}  Nf6 {[%clk 0:03:00]} 2. c4 {[%clk 0:03:01]}  e6 {[%clk 0:03:00]} 3. g3 {[%clk 0:03:01]}  c5 {[%clk 0:03:00]} 4. Nf3 {[%clk 0:02:59]}  d5 {[%clk 0:03:00]} 5. cxd5 {[%clk 0:02:58]}  exd5 {[%clk 0:03:00]} 6. Bg2 {[%clk 0:02:58]}  Be7 {[%clk 0:03:01]} 7. O-O {[%clk 0:02:57]}  O-O {[%clk 0:03:02]} 8. Nc3 {[%clk 0:02:56]}  Nc6 {[%clk 0:03:02]} 9. dxc5 {[%clk 0:02:55]}  d4 {[%clk 0:03:03]} 10. Na4 {[%clk 0:02:37]}  Bf5 {[%clk 0:03:03]} 11. Bg5 {[%clk 0:02:23]}  Re8 {[%clk 0:02:57]} 12. Rc1 {[%clk 0:02:21]}  h6 {[%clk 0:02:51]} 13. Bxf6 {[%clk 0:02:16]}  Bxf6 {[%clk 0:02:51]} 14. Qd2 {[%clk 0:01:55]}  Qe7 {[%clk 0:02:39]} 15. Rfe1 {[%clk 0:01:52]}  Rad8 {[%clk 0:02:38]} 16. b4 {[%clk 0:01:49]}  a6 {[%clk 0:02:29]} 17. Nb6 {[%clk 0:01:47]}  Be6 {[%clk 0:02:22]} 18. a3 {[%clk 0:01:44]}  Qc7 {[%clk 0:02:15]} 19. Nc4 {[%clk 0:01:40]}  Bd5 {[%clk 0:02:02]} 20. Nd6 {[%clk 0:01:37]}  Re6 {[%clk 0:02:02]} 21. Rcd1 {[%clk 0:01:24]}  Bb3 {[%clk 0:01:51]} 22. Rb1 {[%clk 0:01:22]}  Ba4 {[%clk 0:01:52]} 23. Qf4 {[%clk 0:01:10]}  Qe7 {[%clk 0:01:25]} 24. Nf5 {[%clk 0:01:00]}  Qd7 {[%clk 0:01:22]} 25. h4 {[%clk 0:00:57]}  Bb5 {[%clk 0:01:16]} 26. Qd2 {[%clk 0:00:42]}  Bxe2 {[%clk 0:01:10]} 27. Rxe2 {[%clk 0:00:40]}  Rxe2 {[%clk 0:01:09]} 28. Nxh6+ {[%clk 0:00:39]}  gxh6 {[%clk 0:01:10]} 29. Qxe2 {[%clk 0:00:39]}  d3 {[%clk 0:01:09]} 30. Qd2 {[%clk 0:00:39]}  Kg7 {[%clk 0:01:07]} 31. Re1 {[%clk 0:00:38]}  Qf5 {[%clk 0:01:06]} 32. Re3 {[%clk 0:00:35]}  a5 {[%clk 0:00:38]} 33. Ne1 {[%clk 0:00:34]}  axb4 {[%clk 0:00:38]} 34. axb4 {[%clk 0:00:34]}  Nxb4 {[%clk 0:00:35]} 35. Be4 {[%clk 0:00:30]}  Qxc5 {[%clk 0:00:34]} 36. Nxd3 {[%clk 0:00:29]}  Nxd3 {[%clk 0:00:33]} 37. Rxd3 {[%clk 0:00:29]}  Rxd3 {[%clk 0:00:31]} 38. Qxd3 {[%clk 0:00:29]}  b5 {[%clk 0:00:32]} 39. Bd5 {[%clk 0:00:28]}  b4 {[%clk 0:00:25]} 40. Kg2 {[%clk 0:00:26]}  Qd6 {[%clk 0:00:23]} 41. Qf3 {[%clk 0:00:25]}  Qe5 {[%clk 0:00:18]} 42. Bb3 {[%clk 0:00:24]}  Qc3 {[%clk 0:00:16]} 43. Qd5 {[%clk 0:00:24]}  Qc7 {[%clk 0:00:15]} 44. Kf1 {[%clk 0:00:22]}  Qc1+ {[%clk 0:00:14]} 45. Kg2 {[%clk 0:00:22]}  Qc7 {[%clk 0:00:14]} 46. Qf3 {[%clk 0:00:21]}  Qc3 {[%clk 0:00:12]} 47. Qg4+ {[%clk 0:00:20]}  Kf8 {[%clk 0:00:13]} 48. Qc4 {[%clk 0:00:20]}  Qxc4 {[%clk 0:00:11]} 49. Bxc4 {[%clk 0:00:20]}  Ke7 {[%clk 0:00:12]} 50. Kf3 {[%clk 0:00:21]}  Bd4 {[%clk 0:00:13]} 51. Ke2 {[%clk 0:00:20]}  f6 {[%clk 0:00:12]} 52. f4 {[%clk 0:00:20]}  f5 {[%clk 0:00:10]} 53. Bb3 {[%clk 0:00:19]}  Kf6 {[%clk 0:00:11]} 54. Kf3 {[%clk 0:00:19]}  Bc3 {[%clk 0:00:11]} 55. Bc2 {[%clk 0:00:19]}  Be1 {[%clk 0:00:11]} 56. h5 {[%clk 0:00:19]}  Bc3 {[%clk 0:00:10]} 57. Bb3 {[%clk 0:00:19]}  Ke7 {[%clk 0:00:10]} 58. Bc2 {[%clk 0:00:19]}  Ke6 {[%clk 0:00:10]} 59. Bb3+ {[%clk 0:00:19]}  Kf6 {[%clk 0:00:11]} 60. Bc2 {[%clk 0:00:19]}  Be1 {[%clk 0:00:10]} 61. Bb3 {[%clk 0:00:19]}  Bd2 {[%clk 0:00:11]} 62. Bc2 {[%clk 0:00:19]}  Bc1 {[%clk 0:00:11]} 63. Bb3 {[%clk 0:00:18]}  Bb2 {[%clk 0:00:11]} 64. Bc2 {[%clk 0:00:18]}  Bc3 {[%clk 0:00:11]} 65. Bb3 {[%clk 0:00:19]}  Bd4 {[%clk 0:00:12]} 66. Bc2 {[%clk 0:00:19]}  Bb6 {[%clk 0:00:13]} 67. Bb3 {[%clk 0:00:19]}  Bc7 {[%clk 0:00:13]} 68. Bc2 {[%clk 0:00:20]}  Bd6 {[%clk 0:00:13]} 69. Bb3 {[%clk 0:00:20]}  Bc5 {[%clk 0:00:13]} 70. Bc2 {[%clk 0:00:21]}  Bd4 {[%clk 0:00:13]} 71. Bb3 {[%clk 0:00:22]}  Bc3 {[%clk 0:00:14]} 72. Bc2 {[%clk 0:00:22]}  Be1 {[%clk 0:00:15]} 73. Bb3 {[%clk 0:00:23]}  Bd2 {[%clk 0:00:15]} 74. Bc2 {[%clk 0:00:23]}  Bc1 {[%clk 0:00:16]} 75. Bb3 {[%clk 0:00:24]}  Bb2 {[%clk 0:00:16]} 76. Bc2 {[%clk 0:00:25]}  Bd4 {[%clk 0:00:17]} 77. Bb3 {[%clk 0:00:25]}  Bc5 {[%clk 0:00:17]} 78. Bc2 {[%clk 0:00:26]}  Bd6 {[%clk 0:00:18]} 79. Bb3 {[%clk 0:00:26]}  Bc7 {[%clk 0:00:18]} 80. Bc2 {[%clk 0:00:27]}  Bb6 {[%clk 0:00:18]} 81. Bb3 {[%clk 0:00:28]}  Bd4 {[%clk 0:00:19]} 82. Bc2 {[%clk 0:00:28]}  Bb2 {[%clk 0:00:20]} 83. Bb3 {[%clk 0:00:29]}  Bc3 {[%clk 0:00:20]} 1/2-1/2


[Site "https://www.chess.com"]

[Event "Titled Tuesday Blitz August 3 2021"]
[White "Ismagilov, Damir"]
[Black "Timmermans, Mark"]
[WhiteFideId "34199982"]
[BlackFideId "1026399"]
[WhiteElo "2075"]
[BlackElo "2460"]
[Result "0-1"]
[Round "05"]
[TimeControl "180+1"]
[Date "2021.08.03"]
[WhiteClock "0:00:09"]
[BlackClock "0:00:18"]

1. d4 {[%clk 0:03:00]}  Nf6 {[%clk 0:02:59]} 2. c4 {[%clk 0:03:01]}  e6 {[%clk 0:02:57]} 3. Nf3 {[%clk 0:03:00]}  d5 {[%clk 0:02:54]} 4. Nc3 {[%clk 0:02:59]}  dxc4 {[%clk 0:02:54]} 5. e4 {[%clk 0:02:58]}  b5 {[%clk 0:02:53]} 6. e5 {[%clk 0:02:57]}  Nd5 {[%clk 0:02:54]} 7. Nxb5 {[%clk 0:02:55]}  Nb6 {[%clk 0:02:54]} 8. Be3 {[%clk 0:02:54]}  Nc6 {[%clk 0:02:53]} 9. Be2 {[%clk 0:02:53]}  Bb4+ {[%clk 0:02:52]} 10. Nc3 {[%clk 0:02:49]}  Ba6 {[%clk 0:02:52]} 11. Qc2 {[%clk 0:02:40]}  Be7 {[%clk 0:02:51]} 12. a3 {[%clk 0:02:35]}  Qd7 {[%clk 0:02:39]} 13. h4 {[%clk 0:02:32]}  h6 {[%clk 0:02:38]} 14. Rh3 {[%clk 0:02:32]}  Na5 {[%clk 0:02:37]} 15. Rd1 {[%clk 0:02:29]}  Bb7 {[%clk 0:02:33]} 16. h5 {[%clk 0:02:16]}  Nd5 {[%clk 0:02:23]} 17. Bd2 {[%clk 0:02:13]}  Nb6 {[%clk 0:02:02]} 18. Rg3 {[%clk 0:02:04]}  Bf8 {[%clk 0:01:57]} 19. Ne4 {[%clk 0:01:57]}  Qa4 {[%clk 0:01:47]} 20. Qb1 {[%clk 0:01:33]}  Nb3 {[%clk 0:01:44]} 21. Bc3 {[%clk 0:01:28]}  Nd5 {[%clk 0:01:42]} 22. Kf1 {[%clk 0:01:24]}  Nf4 {[%clk 0:01:40]} 23. Bb4 {[%clk 0:01:10]}  Nxe2 {[%clk 0:01:38]} 24. Kxe2 {[%clk 0:01:08]}  Bxb4 {[%clk 0:01:29]} 25. axb4 {[%clk 0:01:09]}  Kf8 {[%clk 0:01:29]} 26. Nc5 {[%clk 0:00:43]}  Qxb4 {[%clk 0:01:29]} 27. Nd7+ {[%clk 0:00:35]}  Ke7 {[%clk 0:01:27]} 28. Rxg7 {[%clk 0:00:35]}  Kxd7 {[%clk 0:01:18]} 29. Rxf7+ {[%clk 0:00:34]}  Kc8 {[%clk 0:01:18]} 30. Qg6 {[%clk 0:00:33]}  Qb6 {[%clk 0:00:36]} 31. Qg7 {[%clk 0:00:26]}  Rd8 {[%clk 0:00:33]} 32. Kf1 {[%clk 0:00:20]}  Bxf3 {[%clk 0:00:23]} 33. gxf3 {[%clk 0:00:21]}  Rxd4 {[%clk 0:00:23]} 34. Rxd4 {[%clk 0:00:17]}  Nxd4 {[%clk 0:00:24]} 35. f4 {[%clk 0:00:18]}  Kb7 {[%clk 0:00:22]} 36. Qg2+ {[%clk 0:00:15]}  Qc6 {[%clk 0:00:19]} 37. Qh3 {[%clk 0:00:15]}  Rg8 {[%clk 0:00:15]} 38. Rf6 {[%clk 0:00:14]}  Qd5 {[%clk 0:00:14]} 39. Rxh6 {[%clk 0:00:10]}  Qe4 {[%clk 0:00:15]} 40. Rg6 {[%clk 0:00:09]}  Rxg6 {[%clk 0:00:13]} 41. hxg6 {[%clk 0:00:10]}  Qxg6 {[%clk 0:00:14]} 42. Qc3 {[%clk 0:00:10]}  Qd3+ {[%clk 0:00:14]} 43. Qxd3 {[%clk 0:00:08]}  cxd3 {[%clk 0:00:15]} 44. Ke1 {[%clk 0:00:08]}  Kc6 {[%clk 0:00:15]} 45. Kd2 {[%clk 0:00:08]}  Kd5 {[%clk 0:00:16]} 46. Kxd3 {[%clk 0:00:09]}  c5 {[%clk 0:00:16]} 47. b3 {[%clk 0:00:09]}  Nxb3 {[%clk 0:00:16]} 48. Kc3 {[%clk 0:00:09]}  Nd4 {[%clk 0:00:15]} 49. Kd3 {[%clk 0:00:10]}  Nf5 {[%clk 0:00:16]} 50. Kc3 {[%clk 0:00:08]}  c4 {[%clk 0:00:16]} 51. f3 {[%clk 0:00:08]}  Kc5 {[%clk 0:00:16]} 52. Kc2 {[%clk 0:00:08]}  Kd4 {[%clk 0:00:17]} 53. Kd2 {[%clk 0:00:08]}  c3+ {[%clk 0:00:18]} 54. Kc2 {[%clk 0:00:09]}  Kc4 {[%clk 0:00:18]} 0-1


[Site "https://www.chess.com"]

[Event "Titled Tuesday Blitz August 3 2021"]
[White "Jian, Alex"]
[Black "Tarigan, Gilbert Elroy"]
[WhiteFideId "30901022"]
[BlackFideId "7108133"]
[WhiteElo "2111"]
[BlackElo "1908"]
[Result "1-0"]
[Round "05"]
[TimeControl "180+1"]
[Date "2021.08.03"]
[WhiteClock "0:00:03"]
[BlackClock "0:00:03"]

1. Nf3 {[%clk 0:03:00]}  Nc6 {[%clk 0:02:55]} 2. b3 {[%clk 0:02:59]}  e5 {[%clk 0:02:54]} 3. Bb2 {[%clk 0:02:58]}  e4 {[%clk 0:02:54]} 4. Nd4 {[%clk 0:02:58]}  Nf6 {[%clk 0:02:51]} 5. e3 {[%clk 0:02:57]}  Bc5 {[%clk 0:02:48]} 6. Nxc6 {[%clk 0:02:54]}  bxc6 {[%clk 0:02:43]} 7. Be2 {[%clk 0:02:51]}  d5 {[%clk 0:02:42]} 8. O-O {[%clk 0:02:50]}  h5 {[%clk 0:02:38]} 9. h3 {[%clk 0:02:47]}  Bf5 {[%clk 0:02:11]} 10. d3 {[%clk 0:02:40]}  Qd7 {[%clk 0:02:07]} 11. dxe4 {[%clk 0:02:21]}  Nxe4 {[%clk 0:01:57]} 12. Nd2 {[%clk 0:02:12]}  O-O-O {[%clk 0:01:52]} 13. Nxe4 {[%clk 0:02:07]}  Bxe4 {[%clk 0:01:53]} 14. c4 {[%clk 0:01:52]}  Rh6 {[%clk 0:01:45]} 15. Bf3 {[%clk 0:01:43]}  Qf5 {[%clk 0:01:22]} 16. Bxe4 {[%clk 0:01:15]}  dxe4 {[%clk 0:01:23]} 17. Qe2 {[%clk 0:00:57]}  Rg6 {[%clk 0:01:22]} 18. Kh1 {[%clk 0:00:51]}  Qg5 {[%clk 0:01:09]} 19. Rg1 {[%clk 0:00:51]}  Rgd6 {[%clk 0:00:58]} 20. Rad1 {[%clk 0:00:47]}  Rd3 {[%clk 0:00:54]} 21. Rge1 {[%clk 0:00:20]}  Bb4 {[%clk 0:00:51]} 22. Rg1 {[%clk 0:00:07]}  Rd2 {[%clk 0:00:49]} 23. Rxd2 {[%clk 0:00:07]}  Rxd2 {[%clk 0:00:50]} 24. Qe1 {[%clk 0:00:08]}  a5 {[%clk 0:00:35]} 25. a3 {[%clk 0:00:08]}  Rxb2 {[%clk 0:00:32]} 26. axb4 {[%clk 0:00:08]}  Rxb3 {[%clk 0:00:29]} 27. bxa5 {[%clk 0:00:08]}  Qc5 {[%clk 0:00:20]} 28. Qa1 {[%clk 0:00:06]}  f6 {[%clk 0:00:20]} 29. a6 {[%clk 0:00:06]}  Ra3 {[%clk 0:00:19]} 30. Qb1 {[%clk 0:00:04]}  Rxa6 {[%clk 0:00:17]} 31. Qxe4 {[%clk 0:00:05]}  Ra4 {[%clk 0:00:15]} 32. Qe8+ {[%clk 0:00:05]}  Kb7 {[%clk 0:00:15]} 33. Rb1+ {[%clk 0:00:05]}  Rb4 {[%clk 0:00:16]} 34. Ra1 {[%clk 0:00:04]}  Qxc4 {[%clk 0:00:03]} 35. Qa8+ {[%clk 0:00:04]}  Kb6 {[%clk 0:00:03]} 36. Qa7+ {[%clk 0:00:03]} 1-0


[Site "https://www.chess.com"]

[Event "Titled Tuesday Blitz August 3 2021"]
[White "Kim, Sergey"]
[Black "Buscar, Michael"]
[WhiteFideId "13700570"]
[BlackFideId "2603616"]
[WhiteElo "2573"]
[BlackElo "2010"]
[Result "1-0"]
[Round "05"]
[TimeControl "180+1"]
[Date "2021.08.03"]
[WhiteClock "0:00:04"]
[BlackClock "0:00:01"]

1. d4 {[%clk 0:03:00]}  Nf6 {[%clk 0:02:59]} 2. c4 {[%clk 0:03:00]}  e6 {[%clk 0:02:59]} 3. Nc3 {[%clk 0:03:01]}  d5 {[%clk 0:02:58]} 4. Nf3 {[%clk 0:03:00]}  c5 {[%clk 0:02:57]} 5. e3 {[%clk 0:02:59]}  Nc6 {[%clk 0:02:57]} 6. a3 {[%clk 0:02:59]}  a6 {[%clk 0:02:57]} 7. Bd3 {[%clk 0:02:55]}  dxc4 {[%clk 0:02:57]} 8. Bxc4 {[%clk 0:02:55]}  b5 {[%clk 0:02:58]} 9. Ba2 {[%clk 0:02:55]}  Bb7 {[%clk 0:02:59]} 10. O-O {[%clk 0:02:56]}  cxd4 {[%clk 0:02:59]} 11. exd4 {[%clk 0:02:55]}  Be7 {[%clk 0:02:59]} 12. Re1 {[%clk 0:02:55]}  O-O {[%clk 0:02:58]} 13. Bg5 {[%clk 0:02:41]}  Rc8 {[%clk 0:02:58]} 14. Rc1 {[%clk 0:02:40]}  Na5 {[%clk 0:02:57]} 15. Ne5 {[%clk 0:02:36]}  Nc4 {[%clk 0:02:47]} 16. Bxc4 {[%clk 0:02:26]}  bxc4 {[%clk 0:02:46]} 17. Qd2 {[%clk 0:02:12]}  Nd5 {[%clk 0:02:18]} 18. Bxe7 {[%clk 0:02:06]}  Nxe7 {[%clk 0:02:15]} 19. Rcd1 {[%clk 0:02:04]}  Nf5 {[%clk 0:02:12]} 20. Qf4 {[%clk 0:01:55]}  Qb6 {[%clk 0:02:04]} 21. Rd2 {[%clk 0:01:51]}  Rfd8 {[%clk 0:02:00]} 22. Red1 {[%clk 0:01:51]}  f6 {[%clk 0:01:43]} 23. Ng4 {[%clk 0:01:41]}  Ne7 {[%clk 0:01:22]} 24. Qg3 {[%clk 0:01:35]}  Kh8 {[%clk 0:01:16]} 25. Qh4 {[%clk 0:01:24]}  Qc6 {[%clk 0:01:06]} 26. Qh3 {[%clk 0:01:15]}  Nd5 {[%clk 0:00:56]} 27. Nxd5 {[%clk 0:01:10]}  Rxd5 {[%clk 0:00:55]} 28. Ne3 {[%clk 0:01:03]}  Rg5 {[%clk 0:00:49]} 29. d5 {[%clk 0:00:51]}  exd5 {[%clk 0:00:45]} 30. Nxd5 {[%clk 0:00:50]}  Rd8 {[%clk 0:00:34]} 31. Ne3 {[%clk 0:00:50]}  Rxd2 {[%clk 0:00:19]} 32. Rxd2 {[%clk 0:00:50]}  h6 {[%clk 0:00:20]} 33. Rd1 {[%clk 0:00:41]}  Qb6 {[%clk 0:00:15]} 34. Nxc4 {[%clk 0:00:33]}  Qb5 {[%clk 0:00:08]} 35. Rd8+ {[%clk 0:00:23]}  Kh7 {[%clk 0:00:08]} 36. Qd3+ {[%clk 0:00:23]}  f5 {[%clk 0:00:08]} 37. Ne3 {[%clk 0:00:16]}  Qxb2 {[%clk 0:00:07]} 38. Qd2 {[%clk 0:00:13]}  Qa1+ {[%clk 0:00:06]} 39. Qd1 {[%clk 0:00:13]}  Qxa3 {[%clk 0:00:06]} 40. h3 {[%clk 0:00:11]}  Qb4 {[%clk 0:00:04]} 41. Rd4 {[%clk 0:00:10]}  Qb6 {[%clk 0:00:04]} 42. Qd2 {[%clk 0:00:08]}  Qc6 {[%clk 0:00:05]} 43. f4 {[%clk 0:00:05]}  Rg3 {[%clk 0:00:04]} 44. Nd5 {[%clk 0:00:04]}  Qc5 {[%clk 0:00:03]} 45. Kh2 {[%clk 0:00:04]}  Rc3 {[%clk 0:00:03]} 46. Nxc3 {[%clk 0:00:03]}  Qc6 {[%clk 0:00:04]} 47. Nd1 {[%clk 0:00:03]}  a5 {[%clk 0:00:04]} 48. Ne3 {[%clk 0:00:03]}  a4 {[%clk 0:00:04]} 49. Nxf5 {[%clk 0:00:04]}  a3 {[%clk 0:00:04]} 50. Nd6 {[%clk 0:00:04]}  a2 {[%clk 0:00:05]} 51. Qxa2 {[%clk 0:00:03]}  Qc5 {[%clk 0:00:05]} 52. Qd2 {[%clk 0:00:04]}  Qh5 {[%clk 0:00:03]} 53. Qd3+ {[%clk 0:00:04]}  Kg8 {[%clk 0:00:02]} 54. Qg3 {[%clk 0:00:04]}  Bc6 {[%clk 0:00:01]} 55. Ne4 {[%clk 0:00:04]} 1-0


[Site "https://www.chess.com"]

[Event "Titled Tuesday Blitz August 3 2021"]
[White "Kobalia, Mikhail"]
[Black "Sanal, Vahap"]
[WhiteFideId "4119150"]
[BlackFideId "6300545"]
[WhiteElo "2569"]
[BlackElo "2495"]
[Result "0-1"]
[Round "05"]
[TimeControl "180+1"]
[Date "2021.08.03"]
[WhiteClock "0:00:04"]
[BlackClock "0:00:15"]

1. e4 {[%clk 0:03:00]}  c5 {[%clk 0:02:58]} 2. Nf3 {[%clk 0:03:01]}  Nc6 {[%clk 0:02:58]} 3. Bb5 {[%clk 0:03:00]}  g6 {[%clk 0:02:57]} 4. Bxc6 {[%clk 0:02:59]}  dxc6 {[%clk 0:02:57]} 5. d3 {[%clk 0:02:59]}  Bg7 {[%clk 0:02:57]} 6. Nbd2 {[%clk 0:02:59]}  Nf6 {[%clk 0:02:57]} 7. a4 {[%clk 0:03:00]}  O-O {[%clk 0:02:57]} 8. a5 {[%clk 0:02:59]}  Nh5 {[%clk 0:02:55]} 9. O-O {[%clk 0:02:56]}  Rb8 {[%clk 0:02:50]} 10. Nc4 {[%clk 0:02:50]}  b5 {[%clk 0:02:46]} 11. axb6 {[%clk 0:02:41]}  axb6 {[%clk 0:02:46]} 12. Ra7 {[%clk 0:02:39]}  b5 {[%clk 0:02:30]} 13. Ncd2 {[%clk 0:02:38]}  Qb6 {[%clk 0:02:24]} 14. Rxe7 {[%clk 0:02:29]}  Bf6 {[%clk 0:02:07]} 15. Re5 {[%clk 0:02:28]}  Ng7 {[%clk 0:02:00]} 16. Nb3 {[%clk 0:02:27]}  c4 {[%clk 0:01:55]} 17. dxc4 {[%clk 0:01:19]}  bxc4 {[%clk 0:01:54]} 18. Nbd2 {[%clk 0:01:19]}  Ba6 {[%clk 0:01:44]} 19. c3 {[%clk 0:01:18]}  Qc7 {[%clk 0:01:16]} 20. Rc5 {[%clk 0:01:13]}  Ne6 {[%clk 0:01:07]} 21. Rxc4 {[%clk 0:01:14]}  Rfd8 {[%clk 0:01:05]} 22. Qc2 {[%clk 0:01:10]}  Nf4 {[%clk 0:01:01]} 23. e5 {[%clk 0:01:02]}  Ne2+ {[%clk 0:00:58]} 24. Kh1 {[%clk 0:01:02]}  Nxc1 {[%clk 0:00:56]} 25. exf6 {[%clk 0:00:58]}  Bxc4 {[%clk 0:00:52]} 26. Nxc4 {[%clk 0:00:57]}  Nd3 {[%clk 0:00:52]} 27. Nd4 {[%clk 0:00:50]}  Nf4 {[%clk 0:00:41]} 28. Qc1 {[%clk 0:00:42]}  c5 {[%clk 0:00:41]} 29. Nf3 {[%clk 0:00:42]}  Nd5 {[%clk 0:00:37]} 30. Qh6 {[%clk 0:00:35]}  Nxf6 {[%clk 0:00:37]} 31. Ng5 {[%clk 0:00:35]}  Qf4 {[%clk 0:00:33]} 32. Ne3 {[%clk 0:00:16]}  Rxb2 {[%clk 0:00:30]} 33. Nxf7 {[%clk 0:00:12]}  Qxh6 {[%clk 0:00:26]} 34. Nxh6+ {[%clk 0:00:13]}  Kg7 {[%clk 0:00:26]} 35. Nhg4 {[%clk 0:00:13]}  Nxg4 {[%clk 0:00:27]} 36. Nxg4 {[%clk 0:00:14]}  Rc2 {[%clk 0:00:22]} 37. h3 {[%clk 0:00:12]}  Rxc3 {[%clk 0:00:22]} 38. Rb1 {[%clk 0:00:12]}  Rd7 {[%clk 0:00:22]} 39. Ne5 {[%clk 0:00:11]}  Rc7 {[%clk 0:00:22]} 40. Kh2 {[%clk 0:00:10]}  c4 {[%clk 0:00:23]} 41. Rb2 {[%clk 0:00:09]}  Rc1 {[%clk 0:00:22]} 42. Ng4 {[%clk 0:00:07]}  c3 {[%clk 0:00:21]} 43. Ra2 {[%clk 0:00:05]}  c2 {[%clk 0:00:18]} 44. Ne3 {[%clk 0:00:06]}  Rh1+ {[%clk 0:00:18]} 45. Kxh1 {[%clk 0:00:06]}  c1=Q+ {[%clk 0:00:19]} 46. Kh2 {[%clk 0:00:07]}  Qc5 {[%clk 0:00:19]} 47. Rd2 {[%clk 0:00:06]}  Qe5+ {[%clk 0:00:19]} 48. g3 {[%clk 0:00:06]}  Qf6 {[%clk 0:00:19]} 49. h4 {[%clk 0:00:05]}  Rf7 {[%clk 0:00:18]} 50. Kg2 {[%clk 0:00:05]}  Qc6+ {[%clk 0:00:18]} 51. Kh2 {[%clk 0:00:05]}  Qf3 {[%clk 0:00:18]} 52. Kg1 {[%clk 0:00:05]}  Ra7 {[%clk 0:00:17]} 53. Rd1 {[%clk 0:00:04]}  Ra2 {[%clk 0:00:17]} 54. Rf1 {[%clk 0:00:05]}  Re2 {[%clk 0:00:17]} 55. Ng2 {[%clk 0:00:05]}  Rd2 {[%clk 0:00:16]} 56. Nf4 {[%clk 0:00:05]}  Rd1 {[%clk 0:00:16]} 57. Nh3 {[%clk 0:00:04]}  Rxf1+ {[%clk 0:00:15]} 58. Kxf1 {[%clk 0:00:04]}  Qh1+ {[%clk 0:00:15]} 59. Ng1 {[%clk 0:00:04]}  h6 {[%clk 0:00:15]} 0-1


[Site "https://www.chess.com"]

[Event "Titled Tuesday Blitz August 3 2021"]
[White "Kovalev, Egor"]
[Black "Ivanchuk, Vasyl"]
[WhiteFideId "24124117"]
[BlackFideId "14100010"]
[WhiteElo "2253"]
[BlackElo "2710"]
[Result "1-0"]
[Round "05"]
[TimeControl "180+1"]
[Date "2021.08.03"]
[WhiteClock "0:00:05"]
[BlackClock "0:00:04"]

1. e4 {[%clk 0:03:00]}  c5 {[%clk 0:02:29]} 2. Nf3 {[%clk 0:03:00]}  d6 {[%clk 0:02:29]} 3. d4 {[%clk 0:03:01]}  cxd4 {[%clk 0:02:29]} 4. Nxd4 {[%clk 0:03:02]}  Nf6 {[%clk 0:02:29]} 5. Nc3 {[%clk 0:03:03]}  Nc6 {[%clk 0:02:29]} 6. f3 {[%clk 0:03:03]}  e5 {[%clk 0:02:28]} 7. Nb3 {[%clk 0:03:04]}  Be7 {[%clk 0:02:29]} 8. Be3 {[%clk 0:03:04]}  O-O {[%clk 0:02:28]} 9. Qd2 {[%clk 0:03:04]}  a5 {[%clk 0:02:25]} 10. Bb5 {[%clk 0:03:04]}  Be6 {[%clk 0:02:24]} 11. O-O-O {[%clk 0:03:02]}  Na7 {[%clk 0:02:19]} 12. Be2 {[%clk 0:03:00]}  Nc8 {[%clk 0:02:12]} 13. a4 {[%clk 0:02:48]}  Nb6 {[%clk 0:02:10]} 14. Kb1 {[%clk 0:02:47]}  Nc4 {[%clk 0:01:58]} 15. Bxc4 {[%clk 0:02:46]}  Bxc4 {[%clk 0:01:58]} 16. g4 {[%clk 0:02:47]}  Qd7 {[%clk 0:01:36]} 17. h4 {[%clk 0:02:44]}  Rfc8 {[%clk 0:01:29]} 18. h5 {[%clk 0:02:42]}  b5 {[%clk 0:01:26]} 19. g5 {[%clk 0:02:11]}  Ne8 {[%clk 0:01:23]} 20. axb5 {[%clk 0:01:58]}  Bxb5 {[%clk 0:01:23]} 21. g6 {[%clk 0:01:47]}  Bc4 {[%clk 0:01:23]} 22. Nc5 {[%clk 0:01:33]}  Qc6 {[%clk 0:01:13]} 23. N5a4 {[%clk 0:01:32]}  Rab8 {[%clk 0:01:08]} 24. h6 {[%clk 0:01:30]}  fxg6 {[%clk 0:01:00]} 25. hxg7 {[%clk 0:01:29]}  Nxg7 {[%clk 0:00:49]} 26. Bg5 {[%clk 0:01:14]}  Bf8 {[%clk 0:00:42]} 27. Qh2 {[%clk 0:01:03]}  Nh5 {[%clk 0:00:40]} 28. Rdg1 {[%clk 0:01:03]}  Rb7 {[%clk 0:00:35]} 29. Bc1 {[%clk 0:01:02]}  Nf6 {[%clk 0:00:23]} 30. Qh4 {[%clk 0:00:55]}  Bg7 {[%clk 0:00:18]} 31. Bg5 {[%clk 0:00:53]}  Nh5 {[%clk 0:00:17]} 32. Bh6 {[%clk 0:00:47]}  Rf8 {[%clk 0:00:12]} 33. Bxg7 {[%clk 0:00:40]}  Rxg7 {[%clk 0:00:12]} 34. Qf2 {[%clk 0:00:34]}  Be6 {[%clk 0:00:11]} 35. Nb6 {[%clk 0:00:31]}  Nf4 {[%clk 0:00:11]} 36. Rd1 {[%clk 0:00:25]}  Rb8 {[%clk 0:00:10]} 37. Nbd5 {[%clk 0:00:22]}  Bxd5 {[%clk 0:00:10]} 38. Nxd5 {[%clk 0:00:19]}  Nxd5 {[%clk 0:00:10]} 39. Rxd5 {[%clk 0:00:19]}  Qc3 {[%clk 0:00:09]} 40. b3 {[%clk 0:00:17]}  a4 {[%clk 0:00:10]} 41. Rd3 {[%clk 0:00:10]}  Qc6 {[%clk 0:00:09]} 42. Rhd1 {[%clk 0:00:08]}  axb3 {[%clk 0:00:09]} 43. Rxb3 {[%clk 0:00:09]}  Rgb7 {[%clk 0:00:08]} 44. Rd3 {[%clk 0:00:09]}  Qc4 {[%clk 0:00:08]} 45. Qe3 {[%clk 0:00:08]}  Kf7 {[%clk 0:00:06]} 46. Kb2 {[%clk 0:00:08]}  Ke6 {[%clk 0:00:05]} 47. Qd2 {[%clk 0:00:05]}  Rxb3+ {[%clk 0:00:05]} 48. cxb3 {[%clk 0:00:06]}  Qb4 {[%clk 0:00:04]} 49. Rc3 {[%clk 0:00:05]} 1-0


[Site "https://www.chess.com"]